Cogmind - Beta 13 X1 @@@ ROGUE MODE // 2023.07.05 @ 10:06:59 Player: maxwell Result: Self-destructed Performance ------------- Evolutions (4) 2000 Regions Visited (12) 2400 Robots Destroyed (178) 890 Value Destroyed (6286) 6286 Prototype IDs (17) 340 Alien Tech Used (0) 0 Bonus (483) 483 TOTAL SCORE: 12399 Bonus ------- High Alert Combat Kills 162 Follower Combat Kills 235 Met Data Miner 300 Friendly Fire -214 Cogmind --------- Core Integrity 320/850 Matter 167/300 Energy 100/100 System Corruption 16% Temperature Cool (0) Movement Walking (400) Ox4 Location -6/Lower Caves Parts ------- > --- POWER (2) -------- (None) > --- PROPULSION (6) --- Flexi-carbon Leg > --- UTILITY (3) ------ Huge Storage Unit Advanced Targeting Computer > --- WEAPON (4) ------- Mini Grenade Launcher > --- INVENTORY (25) --- Advanced Power Amplifier Experimental Sensor Array Advanced Terrain Scan Processor Precision Matter Filter Improved Particle Charger Improved Propulsion Shielding Improved Light Armor Plating Improved Light Armor Plating Layered Medium Armor Plating Layered Medium Armor Plating Shield Generator Shield Generator Improved System Restoration Module Heart of Steel Heavy Assault Cannon Shock Bomb Launcher Missile Launcher Impact Mace Peak State ------------ > --- POWER ------------ Light Angular Momentum Engine > --- PROPULSION ------- Improved Treads Carbon-fiber Leg Flexi-carbon Leg Enhanced Flexi-carbon Leg > --- UTILITY ---------- Improved Cooling System Huge Storage Unit Experimental Sensor Array > --- WEAPON ----------- Enhanced Autogun Enhanced Autogun Enhanced Autogun Mini Grenade Launcher > --- INVENTORY -------- Reinforced Deuterium Engine Advanced Terrain Scan Processor Hardened Light Armor Plating Improved Light Armor Plating Improved Light Armor Plating Reflective Plating Shield Generator Shield Generator Improved Shield Generator Heart of Steel Heavy Assault Cannon Advanced Assault Cannon Shock Bomb Launcher Shock Bomb Launcher Mini Grenade Launcher Missile Launcher Impact Mace [Rating: 57] Favorites ----------- Power Cooled Ion Engine Engine Cooled Ion Engine Power Core Light Fission Core Propulsion Light Treads Treads Light Treads Leg Flexi-carbon Leg Wheel Compact Wheel Utility Huge Storage Unit Device Experimental Sensor Array Storage Huge Storage Unit Processor Improved Signal Interpreter Hackware Hacking Suite Protection Hardened Medium Armor Plating Weapon Enhanced Autogun Energy Gun Small Laser Ballistic Gun Enhanced Autogun Ballistic Cannon Flak Cannon Launcher Shock Bomb Launcher Impact Weapon Heavy Hammer Build | -11 -10 -9 -9 -8 -8 -7 -7 -7 -7 -6 -6 -6 ------- Run | Jun Mat Mat Min Mat Sto Fac Low Low Dat Pro Fac Low Slots Evolved 8 | . . 2 . 2 . 2 . . . . 2 . Power 1 | . . . . . . . . . . . 1 . Propulsion 4 | . . 1 . 1 . 1 . . . . 1 . Utility 1 | . . . . 1 . . . . . . . . Weapon 2 | . . 1 . . . 1 . . . . . . Parts Attached 149 | . 13 18 . 14 5 22 11 5 4 21 17 19 Power 10 | . 2 . . 1 . 1 . . . 1 2 3 Engine 9 | . 2 . . 1 . 1 . . . 1 2 2 Core 1 | . . . . . . . . . . . . 1 Reactor . | . . . . . . . . . . . . . Propulsion 33 | . 2 3 . 6 2 5 1 . . 4 8 2 Treads 23 | . 2 1 . 6 2 5 1 . . 1 4 1 Leg 4 | . . . . . . . . . . 3 . 1 Wheel 6 | . . 2 . . . . . . . . 4 . Hover . | . . . . . . . . . . . . . Flight . | . . . . . . . . . . . . . Utility 48 | . 5 3 . 4 2 2 6 4 . 10 3 9 Device 24 | . 2 1 . . 1 1 3 3 . 8 . 5 Storage 5 | . 3 1 . 1 . . . . . . . . Processor 3 | . . . . 1 . . 1 . . . 1 . Hackware 1 | . . . . . . 1 . . . . . . Protection 15 | . . 1 . 2 1 . 2 1 . 2 2 4 Artifact . | . . . . . . . . . . . . . Weapon 58 | . 4 12 . 3 1 14 4 1 4 6 4 5 Energy Gun 6 | . . 4 . . . . . . . . . 2 Energy Cannon . | . . . . . . . . . . . . . Ballistic Gun 30 | . . 7 . 3 1 9 2 1 4 3 . . Ballistic Cannon 2 | . . . . . . . . . . . 2 . Launcher 12 | . 1 1 . . . 1 2 . . 3 2 2 Special Weapon . | . . . . . . . . . . . . . Impact Weapon 8 | . 3 . . . . 4 . . . . . 1 Slashing Weapon . | . . . . . . . . . . . . . Piercing Weapon . | . . . . . . . . . . . . . Special Melee Weapon . | . . . . . . . . . . . . . Unidentified Prototypes 7 | . 1 1 . . 1 1 1 . . 1 . 1 Corrupted Parts 6 | . . . . . . . . . . 4 . 2 System Corruption 39 | . . . . . . . . . . 28 . 11 Parts Lost 68 | . 2 6 . 6 5 4 3 1 . 11 16 14 Power 9 | . 1 . . 1 . . . . . 1 2 4 Propulsion 26 | . . 2 . 2 2 3 1 1 . 4 7 4 Utility 16 | . 1 2 . 2 2 . 1 . . 2 4 2 Weapon 17 | . . 2 . 1 1 1 1 . . 4 3 4 Highest Loss Streak 10 | . 1 5 . 3 2 2 2 1 . 9 10 6 To Critical Strikes 2 | . . . . . . . . . . 1 1 . Average Slot Usage (%) 89 | . 93 86 100 99 97 98 99 94 63 84 81 65 Engine 7 | . 13 11 11 8 9 7 7 7 7 5 5 6 Treads 25 | . 11 19 11 35 34 37 37 32 30 22 12 8 Leg 2 | . 16 . . . . . . . . 4 11 . Wheel 2 | . . 2 22 . . . . . . . 9 8 Device 6 | . 7 9 . . 5 6 6 6 7 6 7 3 Storage 7 | . 14 11 11 9 9 7 7 7 7 7 6 6 Processor 3 | . . . . 3 . . 6 7 7 4 2 6 Protection 2 | . . . 11 14 12 7 . . . 1 . 2 Energy Gun 1 | . 8 11 . . . . . . . . . 4 Ballistic Gun 21 | . . 20 33 27 26 29 29 29 2 23 6 3 Launcher 1 | . 3 . . . . . . . . 3 5 4 Impact Weapon 1 | . 16 . . . . . . . . . . . Naked Turns . | . . . . . . . . . . . . . Heaviest Build 121 | 10 56 56 56 107 113 111 108 108 101 111 118 121 Greatest Support 108 | 20 40 40 20 82 82 102 108 108 88 88 63 32 Greatest Overweight (x) 29 | . 1 2 2 1 2 1 . 1 1 29 11 29 Average Overweight (x) 1 | . . 1 2 . 1 1 . . 1 1 3 3 Largest Inventory Capacity 25 | . 20 20 20 25 25 25 25 25 25 25 25 25 Average Capacity 23 | . 13 20 20 24 25 25 25 25 25 25 25 25 Most Carried 25 | . 15 17 20 23 25 25 25 25 24 24 25 23 Average Carried 21 | . 11 15 16 21 23 24 23 23 24 22 22 21 Final Capacity 25 | 8 20 20 20 25 25 25 25 25 25 25 25 25 Final Carried 25 | 6 14 15 20 23 25 25 25 24 24 20 20 21 Class Distribution -------------------- 22% | Scavenger-Tank 18% | Mutant 16% | Skirmisher 15% | Scavenger-Skirmisher 14% | Scavenger-Mutant 7% | Tank 3% | Scavenger-Gunner Dominant Class ---------------- Mutant | -10/Materials Tank | -9/Materials Scavenger-Tank | -9/Mines Scavenger-Tank | -8/Materials Scavenger-Tank | -8/Storage Scavenger-Tank | -7/Factory Scavenger-Skirmisher | -7/Lower Caves Skirmisher | -7/Lower Caves Mutant | -7/Data Miner Skirmisher | -6/Proximity Caves Scavenger-Mutant | -6/Factory Scavenger-Mutant | -6/Lower Caves Resources | -11 -10 -9 -9 -8 -8 -7 -7 -7 -7 -6 -6 -6 ----------- Run | Jun Mat Mat Min Mat Sto Fac Low Low Dat Pro Fac Low Matter Collected 5324 | 186 204 399 38 460 265 1309 449 292 . 888 428 406 Remotely . | . . . . . . . . . . . . . Salvage Created 7423 | . 341 847 93 721 298 1532 382 171 . 1074 1387 577 Parts 384 | . 17 65 5 47 21 82 15 5 . 43 72 12 Haulers Intercepted 9 | . . 2 . 3 . 2 . . . . 1 1 Recyclers Shooed 7 | . . 1 1 1 . 1 . . . . 3 . Parts Field Recycled . | . . . . . . . . . . . . . Retrieved Matter . | . . . . . . . . . . . . . Parts Self-Destructed 66 | . . . . . . . 15 4 . 43 . 4 Prevented 29 | . . . . . . . 2 1 . 19 . 7 Kills | -11 -10 -9 -9 -8 -8 -7 -7 -7 -7 -6 -6 -6 ------- Run | Jun Mat Mat Min Mat Sto Fac Low Low Dat Pro Fac Low Combat Hostiles Destroyed 143 | . 10 23 2 13 6 27 10 4 . 20 20 8 Melee 4 | . 4 . . . . . . . . . . . Guns 85 | . . 17 2 13 6 23 5 4 . 12 3 . Cannons 4 | . . . . . . . . . . . 4 . AOE 41 | . 2 6 . . . 4 5 . . 8 11 5 Classes Destroyed 18 | . 6 4 . 1 . 3 1 1 . 1 1 . Worker 8 | . 2 1 . . . 1 . . . . 4 . Builder 4 | . 2 . . 1 . . . . . . 1 . Tunneler 1 | . . . . . . . . . . . 1 . Hauler 9 | . . 2 . 3 . 2 . . . . 1 1 Recycler 5 | . . 1 . . . 2 . . . . 2 . Minesweeper 1 | . . . . . . . . 1 . . . . Mechanic 1 | . . . . . . . . . . 1 . . Operator 1 | . 1 . . . . . . . . . . . Watcher 5 | . 1 2 . . 1 . . . . . 1 . Swarmer 36 | . 3 11 . 3 1 4 4 . . 1 9 . Grunt 63 | . 7 7 1 7 3 13 3 . . 13 3 6 Brawler 3 | . . 1 1 . . . . . . 1 . . Duelist 4 | . . . . . . . 1 . . 3 . . Sentry 19 | . . 4 . 2 2 2 1 . . 2 6 . Specialist 2 | . . . . . . 2 . . . . . . Hunter 7 | . . . . 1 . 1 1 . . . 2 2 Programmer 4 | . . . . . . 4 . . . . . . Heavy 1 | . . . . . . 1 . . . . . . Decomposer 1 | . . . . . . . . 1 . . . . Wasp 3 | . . . . . . . . 3 . . . . Thug 1 | . . . . . . . . 1 . . . . Best Kill Streak 11 | . 5 8 2 4 3 6 5 4 . 11 8 5 Combat Bots Only 10 | . 3 7 2 4 3 6 5 4 . 10 7 5 Max Kills in Single Turn 4 | . 2 4 1 2 1 2 2 1 . 2 4 2 Gunslinging 1 | . . 1 . 1 . . . . . . . . Exploded 4 | . 1 3 . . . 2 2 . . 1 4 2 Melee 1 | . 1 . . . . . . . . . . . Uniques/NPCs Destroyed . | . . . . . . . . . . . . . Combat | -11 -10 -9 -9 -8 -8 -7 -7 -7 -7 -6 -6 -6 -------- Run | Jun Mat Mat Min Mat Sto Fac Low Low Dat Pro Fac Low Damage Taken 10043 | . 470 788 16 998 442 1493 317 241 . 1787 1927 1564 Core 1290 | . 159 129 . 90 10 158 35 18 . 161 254 276 Absorbed by Shields 722 | . 131 230 . . 54 28 . . . 78 201 . Ignored by Resistances 16 | . . . . . . . . . . . . 16 Core Remaining (%) 66 | 100 36 . 67 . 81 . . . . 46 . . Volleys Fired 420 | . 9 64 4 45 24 74 22 15 . 57 67 39 Largest 4 | . 2 3 3 3 3 4 4 4 . 4 2 3 Hottest 154 | . 80 100 63 71 76 100 100 100 . 100 73 154 Shots Fired 1099 | . 12 183 12 135 70 284 64 60 . 126 103 50 Gun 978 | . 6 182 12 135 70 281 56 60 . 104 47 25 Cannon 32 | . . . . . . . . . . . 28 4 Launcher 89 | . 6 1 . . . 3 8 . . 22 28 21 Special . | . . . . . . . . . . . . . Kinetic 947 | . . 132 12 135 70 281 56 60 . 104 75 22 Thermal 63 | . 6 50 . . . . . . . . . 7 Explosive 27 | . 6 1 . . . 3 3 . . 5 . 9 Electromagnetic 62 | . . . . . . . 5 . . 17 28 12 Robot Hit Streak 15 | . 4 14 10 14 14 15 10 7 . 14 14 12 Robot Miss Streak 6 | . 1 4 . 4 3 5 4 6 . 4 6 4 Penetration Max 1 | . . . . 1 . . . . . . . . Secondary Targets 21 | . . 3 . 4 1 6 2 2 . 3 . . Max Gunslinging Chain 1 | . . 1 . 1 1 1 1 1 . 1 . . Shots Hit Robots 714 | . 33 113 9 93 45 186 37 33 . 87 56 22 Core Hits 375 | . 11 50 4 40 12 67 24 11 . 68 59 29 Critical Kills 2 | . . . . 1 . . . . . 1 . . Critical Parts Destroyed 10 | . 5 . . . 1 2 . . . 1 1 . Critical Strikes 13 | . 5 . . 1 1 2 . . . 2 1 1 Burn 1 | . . . . . . . . . . . . 1 Destroy 7 | . . . . 1 1 2 . . . 2 1 . Smash 5 | . 5 . . . . . . . . . . . Melee Attacks 53 | . 34 . . . . 3 . . . . . 16 Impact 53 | . 34 . . . . 3 . . . . . 16 Slashing . | . . . . . . . . . . . . . Piercing . | . . . . . . . . . . . . . Sneak Attacks 1 | . 1 . . . . . . . . . . . Combat Hostiles . | . . . . . . . . . . . . . Follow-up Attacks 5 | . 5 . . . . . . . . . . . Damage Inflicted 17575 | . 1357 1772 113 1358 779 3392 986 643 . 3122 2289 1764 Guns 10074 | . 55 1209 101 1344 779 3086 646 643 . 1347 639 225 Cannons 588 | . . . . . . . . . . . 468 120 Explosions 5918 | . 333 563 . . . 306 340 . . 1775 1182 1419 Melee 969 | . 969 . . . . . . . . . . . Ramming 26 | . . . 12 14 . . . . . . . . Kinetic 10107 | . . 839 101 1344 779 3086 646 643 . 1347 1107 215 Thermal 1382 | . 55 843 . . . . . . . 146 208 130 Explosive 2591 | . 333 90 . . . 306 234 . . 893 . 735 Electromagnetic 2500 | . . . . . . . 106 . . 736 974 684 Impact 969 | . 969 . . . . . . . . . . . Slashing . | . . . . . . . . . . . . . Piercing . | . . . . . . . . . . . . . Highest Corruption 35 | . . . . . . 1 1 1 1 35 1 11 Average Corruption 3 | . . . . . . 1 1 1 1 9 1 7 Corruption Purged 1 | . . . . . . . . . . . . 1 Corruption Blocked . | . . . . . . . . . . . . . Effects 120 | . . . . . . 16 19 9 2 66 . 8 Message Errors 23 | . . . . . . 3 4 4 . 10 . 2 Matter Fused 30 | . . . . . . 3 7 1 . 19 . . Heat Flow Errors 19 | . . . . . . 1 4 1 1 10 . 2 Energy Discharges 18 | . . . . . . 6 1 2 1 6 . 2 Parts Rejected 1 | . . . . . . . . . . 1 . . Parts Fused 2 | . . . . . . . . . . 2 . . Data Loss (minor) 12 | . . . . . . . . 1 . 9 . 2 Data Loss (major) 8 | . . . . . . 1 1 . . 6 . . Misfires 6 | . . . . . . 2 1 . . 3 . . Alerts 1 | . . . . . . . 1 . . . . . Overload Shots . | . . . . . . . . . . . . . Overflow Damage 390 | . 273 44 . . . 17 . . . 25 21 10 Projectiles 2 | . 2 . . . . . . . . . . . Explosions 117 | . . 44 . . . 17 . . . 25 21 10 Melee 271 | . 271 . . . . . . . . . . . Knockbacks 6 | . 6 . . . . . . . . . . . Impact 4 | . 4 . . . . . . . . . . . Kinetic . | . . . . . . . . . . . . . Secondary 2 | . 2 . . . . . . . . . . . Self-Inflicted Damage 607 | . 34 . 6 . . . . . . 271 70 226 Shots 27 | . 1 . . . . . . . . 14 6 6 Rammed 4 | . . . 2 2 . . . . . . . . Targets Rammed 4 | . . . 2 2 . . . . . . . . Kicked . | . . . . . . . . . . . . . Crushed . | . . . . . . . . . . . . . Highest Temperature 406 | . 36 266 24 71 200 337 406 221 251 211 36 397 Average Temperature 75 | . 12 70 13 23 66 110 126 85 135 85 17 120 Received Heat Transfer 2556 | . 140 239 6 450 233 558 117 9 . 411 222 171 Effects 5 | . . . . . . 1 4 . . . . . Interference 3 | . . . . . . . 3 . . . . . Short Circuit 1 | . . . . . . 1 . . . . . . Damage (major) 1 | . . . . . . . 1 . . . . . Siege Activations . | . . . . . . . . . . . . . Robots Corrupted 5 | . . . . . . . . . . . 2 3 Combat Hostiles 5 | . . . . . . . . . . . 2 3 Parts Fried 26 | . 10 . . . . . . . . 3 7 6 Impact Corruptions 13 | . 13 . . . . . . . . . . . Robots Melted . | . . . . . . . . . . . . . Combat Hostiles . | . . . . . . . . . . . . . Parts Melted . | . . . . . . . . . . . . . Heat Transferred 2175 | . 125 1150 . . . . . . . 200 250 450 Parts Sabotaged . | . . . . . . . . . . . . . Parts Stolen . | . . . . . . . . . . . . . Parts Stripped . | . . . . . . . . . . . . . Power Chain Reactions 7 | . . . . . . . . . . 1 6 . Missiles Intercepted . | . . . . . . . . . . . . . Alert | -11 -10 -9 -9 -8 -8 -7 -7 -7 -7 -6 -6 -6 ------- Run | Jun Mat Mat Min Mat Sto Fac Low Low Dat Pro Fac Low Peak Influence 616 | . 447 616 252 263 258 391 . . . . 438 . Initial 192 | . . 125 192 98 104 28 . . . . 75 . Average 221 | . 155 426 229 173 142 165 . . . . 188 . Maximum Alert Level 2 | . 2 2 1 1 1 1 . . . . 2 . Low Security (%) 51 | . 71 10 22 58 65 62 . . . . 64 . Level 1 31 | . 17 20 77 41 34 37 . . . . 22 . Level 2 16 | . 10 68 . . . . . . . . 13 . Level 3 . | . . . . . . . . . . . . . Level 4 . | . . . . . . . . . . . . . Level 5 . | . . . . . . . . . . . . . High Security . | . . . . . . . . . . . . . Max Security . | . . . . . . . . . . . . . Squads Dispatched 20 | . 2 2 . . . 9 . . . 1 6 . Investigation 1 | . 1 . . . . . . . . . . . Extermination 4 | . . . . . . 3 . . . . 1 . Reinforcement 11 | . 1 2 . . . 6 . . . . 2 . Assault 1 | . . . . . . . . . . 1 . . Garrison 3 | . . . . . . . . . . . 3 . Intercept . | . . . . . . . . . . . . . Searches Triggered . | . . . . . . . . . . . . . Construction Impeded 3 | . . . . . . 1 . . . . 2 . Haulers Reinforced 2 | . . . . . . 2 . . . . . . Active Scanning Responses . | . . . . . . . . . . . . . Cargo Convoy Interrupts 1 | . . . . . . 1 . . . . . . Stealth | -11 -10 -9 -9 -8 -8 -7 -7 -7 -7 -6 -6 -6 --------- Run | Jun Mat Mat Min Mat Sto Fac Low Low Dat Pro Fac Low Distress Signals 13 | . 1 5 . 3 1 1 . . . . 2 . Communications Jammed . | . . . . . . . . . . . . . Distress Signals . | . . . . . . . . . . . . . Times Spotted 198 | . 20 36 2 20 7 27 10 4 . 29 26 17 Peak Tracking Total 9 | . 6 9 1 5 3 5 4 4 . 6 7 5 Tactical Retreats 13 | . 1 5 . . . . 1 . . 1 1 4 Traps | -11 -10 -9 -9 -8 -8 -7 -7 -7 -7 -6 -6 -6 ------- Run | Jun Mat Mat Min Mat Sto Fac Low Low Dat Pro Fac Low Traps Triggered 2 | . 2 . . . . . . . . . . . Indirectly . | . . . . . . . . . . . . . Trap Hack Attempts . | . . . . . . . . . . . . . Triggered . | . . . . . . . . . . . . . Disarmed . | . . . . . . . . . . . . . Reprogrammed . | . . . . . . . . . . . . . Reused . | . . . . . . . . . . . . . Traps Extracted . | . . . . . . . . . . . . . Installed . | . . . . . . . . . . . . . Triggered 4 | . . . 1 . . 2 . 1 . . . . Machines | -11 -10 -9 -9 -8 -8 -7 -7 -7 -7 -6 -6 -6 ---------- Run | Jun Mat Mat Min Mat Sto Fac Low Low Dat Pro Fac Low Machines Disabled 18 | . 1 5 . 2 1 3 . . . 1 5 . Max in Single Turn 5 | . 1 5 . 1 1 1 . . . 1 4 . Machines Repaired . | . . . . . . . . . . . . . Machines Sabotaged . | . . . . . . . . . . . . . Overloaded Fab Kills . | . . . . . . . . . . . . . Hacking | -11 -10 -9 -9 -8 -8 -7 -7 -7 -7 -6 -6 -6 --------- Run | Jun Mat Mat Min Mat Sto Fac Low Low Dat Pro Fac Low Machines Accessed 16 | . . . . 2 2 7 1 . 3 . 1 . Terminals 8 | . . . . 2 2 3 . . . . 1 . Fabricators 4 | . . . . . . 4 . . . . . . Repair Stations . | . . . . . . . . . . . . . Recycling Units . | . . . . . . . . . . . . . Scanalyzers . | . . . . . . . . . . . . . Garrison Access . | . . . . . . . . . . . . . Total Hacks 57 | . . . . 6 3 20 1 . 25 . 2 . Successful 39 | . . . . 3 2 7 1 . 25 . 1 . Failed 18 | . . . . 3 1 13 . . . . 1 . Catastrophic 2 | . . . . . . 1 . . . . 1 . Database Lockouts . | . . . . . . . . . . . . . Manual 23 | . . . . 6 . 16 . . . . 1 . Terminals 22 | . . . . 6 3 11 . . . . 2 . Fabricators 9 | . . . . . . 9 . . . . . . Repair Stations . | . . . . . . . . . . . . . Recycling Units . | . . . . . . . . . . . . . Scanalyzers . | . . . . . . . . . . . . . Garrison Access . | . . . . . . . . . . . . . Terminal Hacks 31 | . . . . 1 2 1 1 . 25 . 1 . Record 6 | . . . . . . . . . 6 . . . Part Schematic 11 | . . . . . . . . . 11 . . . Robot Schematic 5 | . . . . . . . . . 5 . . . Prototype ID Bank 3 | . . . . . . . . . 3 . . . Open Door 3 | . . . . . 2 . 1 . . . . . Branch Access Points 2 | . . . . 1 . 1 . . . . . . Terminal Index 1 | . . . . . . . . . . . 1 . Fabricator Hacks 2 | . . . . . . 2 . . . . . . Network Status 2 | . . . . . . 2 . . . . . . Repair Station Hacks . | . . . . . . . . . . . . . Recycling Unit Hacks . | . . . . . . . . . . . . . Scanalyzer . | . . . . . . . . . . . . . Garrison Access Hacks . | . . . . . . . . . . . . . Unauthorized Hacks 6 | . . . . 2 . 4 . . . . . . Terminals 4 | . . . . 2 . 2 . . . . . . Botnet 3 | . . . . 1 . 2 . . . . . . Operators 1 | . . . . 1 . . . . . . . . Fabricators 2 | . . . . . . 2 . . . . . . Liberate 2 | . . . . . . 2 . . . . . . Repair Stations . | . . . . . . . . . . . . . Recycling Units . | . . . . . . . . . . . . . Scanalyzers . | . . . . . . . . . . . . . Garrison Access . | . . . . . . . . . . . . . Data Cores Recovered . | . . . . . . . . . . . . . Used . | . . . . . . . . . . . . . Hacking Detections 8 | . . . . 1 . 6 . . . . 1 . Full Trace Events . | . . . . . . . . . . . . . Feedback Events . | . . . . . . . . . . . . . Feedback Blocked . | . . . . . . . . . . . . . Robot Schematics Acquired 5 | . . . . . . . . . 5 . . . Robots Built . | . . . . . . . . . . . . . Authchips . | . . . . . . . . . . . . . Time . | . . . . . . . . . . . . . Total Robot Build Rating . | . . . . . . . . . . . . . Part Schematics Acquired 11 | . . . . . . . . . 11 . . . Parts Built . | . . . . . . . . . . . . . Authchips . | . . . . . . . . . . . . . Time . | . . . . . . . . . . . . . Total Part Build Rating . | . . . . . . . . . . . . . Parts Repaired . | . . . . . . . . . . . . . Time . | . . . . . . . . . . . . . Parts Recycled . | . . . . . . . . . . . . . Recycled Matter . | . . . . . . . . . . . . . Retrieved Matter . | . . . . . . . . . . . . . Retrieved Components . | . . . . . . . . . . . . . Parts Scanalyzed . | . . . . . . . . . . . . . Part Schematics Acquired . | . . . . . . . . . . . . . Parts Damaged . | . . . . . . . . . . . . . Bothacking | -11 -10 -9 -9 -8 -8 -7 -7 -7 -7 -6 -6 -6 ------------ Run | Jun Mat Mat Min Mat Sto Fac Low Low Dat Pro Fac Low Used RIF Installer . | . . . . . . . . . . . . . Robots Hacked . | . . . . . . . . . . . . . Non-combat . | . . . . . . . . . . . . . Combat . | . . . . . . . . . . . . . Robot Hacks Applied . | . . . . . . . . . . . . . Relay Couplers Released 1 | . . . . . . 1 . . . . . . Machine Destruction 1 | . . . . . . 1 . . . . . . Fabnet Peak Effective % . | . . . . . . . . . . . . . Robots Rewired 3 | . . . . . . . . . . 1 2 . Allies Hacked . | . . . . . . . . . . . . . Hacks Repelled . | . . . . . . . . . . . . . Allies | -11 -10 -9 -9 -8 -8 -7 -7 -7 -7 -6 -6 -6 -------- Run | Jun Mat Mat Min Mat Sto Fac Low Low Dat Pro Fac Low Total Allies 4 | . . . . . . . . . . 2 2 . Largest Group 2 | . . . . . . . . . . 1 2 . Highest-Rated Group 96 | . . . . . . . . . . 96 72 . Highest-Rated Ally 96 | . . . . . . . . . . 96 40 . Total Orders . | . . . . . . . . . . . . . Ally Attacks 31 | . . . . . . . . . . 26 5 . Total Damage 762 | . . . . . . . . . . 612 150 . Kills 6 | . . . . . . . . . . 6 . . Allies Corrupted . | . . . . . . . . . . . . . Allies Melted . | . . . . . . . . . . . . . Intel | -11 -10 -9 -9 -8 -8 -7 -7 -7 -7 -6 -6 -6 ------- Run | Jun Mat Mat Min Mat Sto Fac Low Low Dat Pro Fac Low Robot Analysis Total . | . . . . . . . . . . . . . Derelict Logs Recovered 10 | . . . 2 . . . 3 . . 3 . 2 Drone Launches . | . . . . . . . . . . . . . Drone Recoveries . | . . . . . . . . . . . . . Exploration | -11 -10 -9 -9 -8 -8 -7 -7 -7 -7 -6 -6 -6 ------------- Run | Jun Mat Mat Min Mat Sto Fac Low Low Dat Pro Fac Low Turns Passed 14322 | . 842 1260 278 786 480 1789 1781 1798 238 2784 869 1417 Spaces Moved 6337 | 1 444 456 236 274 161 646 1058 854 96 1088 392 631 Core 11 | . . . . . . . . . . 2 . 9 Treads 4406 | . 178 384 . 274 161 646 1058 854 96 755 . . Legs 765 | 1 266 . . . . . . . . 331 138 29 Wheels 1155 | . . 72 236 . . . . . . . 254 593 Hover . | . . . . . . . . . . . . . Flight . | . . . . . . . . . . . . . Fastest Speed 110 | 120 120 110 110 160 235 236 162 162 242 190 130 145 Average Speed 199 | 120 157 219 110 220 236 237 162 206 242 242 168 183 Slowest Speed 1500 | 120 240 240 110 240 312 239 162 242 242 1500 245 1500 Overloaded Moves . | . . . . . . . . . . . . . Propulsion Burnouts . | . . . . . . . . . . . . . Robots Hopped 2 | . . . . . . . 2 . . . . . Cave-ins Triggered . | . . . . . . . . . . . . . Exploration Rate (%) 51 | 2 78 53 63 30 31 17 92 84 68 80 14 51 Regions Visited 12 Branch Regions 7 Pre-discovered Areas 2 | . . . . . . . . . 1 1 . . Known Exits Taken 7 | . . . . 1 . 1 1 1 1 1 1 . Unknown Exits Taken 5 | 1 1 1 1 . 1 . . . . . . . Scrap Searched 7 | . . . 2 . . . 1 2 . 2 . . Spaces Dug 31 | . . . . . . 2 . . . . 2 27 Terrain Destroyed 217 | . 16 38 . . . 11 28 . . 32 27 65 Melee 18 | . . . . . . 2 . . . . . 16 Projectile 4 | . . . . . . . . . . . 3 1 AOE 195 | . 16 38 . . . 9 28 . . 32 24 48 Terrain Rammed . | . . . . . . . . . . . . . Walls Destroyed . | . . . . . . . . . . . . . Machines Disabled . | . . . . . . . . . . . . . Actions | -11 -10 -9 -9 -8 -8 -7 -7 -7 -7 -6 -6 -6 --------- Run | Jun Mat Mat Min Mat Sto Fac Low Low Dat Pro Fac Low Total 7301 | . 524 588 246 362 218 788 1099 876 103 1168 512 817 Wait 220 | . 9 34 . 7 22 19 8 . . . 15 106 Move 6321 | . 443 455 235 273 160 645 1053 853 95 1087 391 631 Hop 2 | . . . . . . . 2 . . . . . Pick Up 76 | . 12 9 5 14 7 13 2 1 . 1 9 3 Fast Attach 45 | . 7 6 . 1 . 5 . . 4 6 8 8 Attach 55 | . 4 7 . 9 5 9 4 . . 5 8 4 Detach 3 | . 1 . . . . . . . . . . 2 Swap 50 | . 3 5 . 4 . 8 7 5 . 10 1 7 Drop 45 | . 8 8 . 7 . 12 1 2 4 . 2 1 Fire 420 | . 9 64 4 45 24 74 22 15 . 57 67 39 Melee 47 | . 28 . . . . 3 . . . . . 16 Ram 2 | . . . 2 . . . . . . . . . Kick . | . . . . . . . . . . . . . Crush 2 | . . . . 2 . . . . . . . . Escape Stasis . | . . . . . . . . . . . . . Rewire 13 | . . . . . . . . . . 2 11 . Trap . | . . . . . . . . . . . . . Miscellaneous . | . . . . . . . . . . . . . Route ------- -11/Junkyard -10/Materials (discovered 2 exits: [*Mat x2]) -9/Materials (discovered 3 exits: *Mat / [*Min x2]) -9/Mines -8/Materials (discovered 2 exits: *Fac / *Sto) -8/Storage (discovered 2 exits: *Fac / Rec) -7/Factory (discovered 2 exits: *Low x2) -7/Lower Caves -7/Lower Caves (discovered 2 exits: *Fac / *Dat) -7/Data Miner -6/Proximity Caves -6/Factory (discovered 3 exits: *Fac x2 / *Low) -6/Lower Caves History --------- Turn | Location | Event 1 | -11/Junkyard | Discovered new exit (range 0) 1 | -11/Junkyard | Entered Materials 301 | -10/Materials | Build established: Mutant 504 | -10/Materials | Discovered new exit (range 16) 779 | -10/Materials | Core integrity fell below 50% 798 | -10/Materials | Discovered new exit (range 4) 843 | -10/Materials | Entered another Materials area 843 | -9/Materials | Evolved 2 slots: Propulsion x1, Weapon x1 1094 | -9/Materials | Destroyed 7 combat bots 1240 | -9/Materials | Discovered new exit (range 8) 1246 | -9/Materials | Build established: Tank 1535 | -9/Materials | Discovered new exit (range 8) 2005 | -9/Materials | Lost 5 parts (2n2u1w) 2070 | -9/Materials | Discovered new exit (range 10) 2103 | -9/Materials | Entered Mines 2267 | -9/Mines | Learned Materials terminal intel 2279 | -9/Mines | Build established: Scavenger-Tank 2330 | -9/Mines | Found a damaged Exp. Sensor Array with a note attached 2332 | -9/Mines | Found Prototype Device 2355 | -9/Mines | Discovered new exit (range 11) 2381 | -9/Mines | Entered Materials 2381 | -8/Materials | Evolved 2 slots: Propulsion x1, Utility x1 2382 | -8/Materials | Loaded intel: 12 terminal locations 2722 | -8/Materials | Lost 3 parts (2u1w) 2909 | -8/Materials | Discovered new exit (range 5) 2988 | -8/Materials | Identified exit to Storage 3167 | -8/Materials | Entered Storage 3168 | -8/Storage | Identified exit to Recycling 3607 | -8/Storage | Discovered new exit (range 16) 3647 | -8/Storage | Entered Factory 3647 | -7/Factory | Evolved 2 slots: Propulsion x1, Weapon x1 4153 | -7/Factory | Identified exit to Lower Caves 4365 | -7/Factory | Cargo convoy interrupted 5436 | -7/Factory | Entered Lower Caves 5438 | -7/Lower Caves | Attracted the attention of an 0b10 checkpoint 5456 | -7/Lower Caves | Identified Exp. Sensor Array 5622 | -7/Lower Caves | Encountered a Warlord checkpoint 5643 | -7/Lower Caves | Learned location of 2 exits from Factory 5804 | -7/Lower Caves | Build established: Scavenger-Skirmisher 6233 | -7/Lower Caves | Found Prototype Device 6342 | -7/Lower Caves | Learned Factory emergency access door positions 6583 | -7/Lower Caves | Learned Factory non-interactive machine intel 7205 | -7/Lower Caves | Discovered new exit (range 10) 7215 | -7/Lower Caves | Identified exit to Lower Caves 7217 | -7/Lower Caves | Entered another Lower Caves area 7248 | -7/Lower Caves | Discovered new exit (range 15) 7791 | -7/Lower Caves | Encountered a Warlord checkpoint 7848 | -7/Lower Caves | Ambushed by wild Derelicts 8216 | -7/Lower Caves | Build established: Skirmisher 8393 | -7/Lower Caves | Discovered new exit (range 15) 8425 | -7/Lower Caves | Identified exit to Data Miner 9015 | -7/Lower Caves | Entered Data Miner 9017 | -7/Data Miner | Discovered new exit (range 6) 9063 | -7/Data Miner | Met Data Miner 9105 | -7/Data Miner | Learned location of Section 7 (-2) 9105 | -7/Data Miner | Acquired the access code to Warlord's prototype stash 9153 | -7/Data Miner | Received God Mode back door access code from Data Miner 9251 | -7/Data Miner | Identified exit to Proximity Caves 9253 | -7/Data Miner | Entered Proximity Caves 10015 | -6/Proximity Caves | Learned location of Extension (-4) 10206 | -6/Proximity Caves | Escorted by Enhanced Grunt 10803 | -6/Proximity Caves | Identified exit to Factory 10887 | -6/Proximity Caves | Build established: Mutant 10936 | -6/Proximity Caves | Learned Factory emergency access door positions 11141 | -6/Proximity Caves | Attracted the attention of an 0b10 outpost 11189 | -6/Proximity Caves | Core integrity fell below 50% 11208 | -6/Proximity Caves | Lost 9 parts (1p4n2u2w) 11209 | -6/Proximity Caves | Destroyed 10 combat bots 11221 | -6/Proximity Caves | System corruption reached 10% 11598 | -6/Proximity Caves | System corruption reached 30% 11720 | -6/Proximity Caves | Attracted the attention of an 0b10 checkpoint 11788 | -6/Proximity Caves | Spotted B-75 Beast 12015 | -6/Proximity Caves | Build established: Scavenger-Mutant 12037 | -6/Proximity Caves | Entered Factory 12037 | -6/Factory | Evolved 2 slots: Power x1, Propulsion x1 12038 | -6/Factory | Identified exit to Factory 12038 | -6/Factory | Identified exit to Lower Caves 12040 | -6/Factory | Loaded intel: 221 non-interactive machine locations 12164 | -6/Factory | Lost 3 parts (1p1n1w) 12477 | -6/Factory | Discovered exit to Factory (range 4) 12676 | -6/Factory | Destroyed 7 combat bots 12835 | -6/Factory | Lost 10 parts (1p4n3u2w) 12906 | -6/Factory | Entered Lower Caves 13181 | -6/Lower Caves | Spotted B-75 Beast 13814 | -6/Lower Caves | Lost 6 parts (2p1n3w) 13977 | -6/Lower Caves | Learned 4 Factory zone layouts 13982 | -6/Lower Caves | Learned location of 1 exit from Factory 14077 | -6/Lower Caves | Lost 5 parts (1p3n1u) 14202 | -6/Lower Caves | System corruption reached 10% 14318 | -6/Lower Caves | Core integrity fell below 50% 14323 | -6/Lower Caves | Self-destructed Last Messages --------------- 14192_ Integrated Corrupted Flexi-carbon Leg (+8). 14193_ Acquired 35 matter. 14201_ Acquired Corrupted Lgt. Fission Core. 14201_ Integrated Corrupted Lgt. Fission Core (+3). 14201_ Complication: System interference. 14201_ Adv. Targeting Computer temporarily disabled. 14201_ Mni. Grenade Launcher temporarily disabled. 14206_ System corrupted: Heat flow error (+259). 14233_ System corrupted: Component data lost. 14256_ System corrupted: Heat flow error (+201). 14275_ System corrupted: Energy discharge (-38). 14300_ H=QLAL&7JB0M=Z3TGKELBJGPU7SI3X|8|ILBG 14313_ Thermic Laser destroyed. 14313_ Destroyed Thermic Laser. 14315_ The unstable cave ceiling collapses. 14317_ System corrupted: Component data lost. 14317_ G-50 Soldier destroyed. 14322_ Hrd. Light Armor Plating destroyed. 14323_ Lgt. Fission Core destroyed. 14323_ System corrupted by crushing effect (+5). Map ----- +----------------------------------------------------+ | ?????????????????????????????????????????????????? | | ?????????????????????????????????????????????????? | | ?????????????????????????????????????????????????? | | ?????????????????????????????????????????????????? | | ?????????????????????????????????????????????????? | | ?????????????????????????????????????????????????? | | ?????????????????????????????????????????????????? | | ?????????????????????????????????????????????????? | | ?????????????????????????????????????????????????? | | ?????????????????????????????????????????????????? | | ?????????????????????????????????????????????????? | | ?????????????????????????????????????????????????? | | ?????????????????????????????????????????????????? | | ?????????????????????????????????????????????????? | | ?????????????????????????????????????????????????? | | ?????????????????????????????????????????????????? | | ?????????????????##????????#####?????????????????? | | ????????????????## ??????? ??????????????????? | | ???????????????## ?????? ???????????????????? | | ???????????????# ###### #???????????????????? | | ???????????????# #???????????????????? | | ???????????????# # #???????????????????# | | ???????????## # #???????????????????# | | ????????? #???????????????????# | | ????????? g #???????????????????? | | ?????????????# b@ #???????????????????? | | ????????????????## g ##???????????????????? | | ?????????????????# # #???????????????????? | | ????????????????????# ##???????????????????? | | ????????????????????### ##????????????????????? | | ??????????????????????## #????????????????????? | | ???????????????????????# #???###?####?????????? | | ???????????????????????### #??## ### #########?# | | ?????????????????????????# #### # ### | | ?????????????????????????# | | ????????????????????????# #### | | ???????????????????????# ??## | | ?????????????????????# ???# ## | | ?????????????????????## ?# ## | | ??????????????????????# ## # # | | ?????????????????????# ## # # # | | ?????????????????????# ### ##### ###### | | ?????????????????????# #### ##??####???###????? | | ?????????????????????###???## ##?????????????????? | | ????????????????????????????###??????????????????? | | ?????????????????????????????????????????????????? | | ?????????????????????????????????????????????????? | | ?????????????????????????????????????????????????? | | ?????????????????????????????????????????????????? | | ?????????????????????????????????????????????????? | +----------------------------------------------------+ Best States ------------- Heat Dissipation 64 Energy Generation 31 Energy Capacity 290 Matter Stores 300 Matter Capacity 300 Sight Range 16 Robot Scan Range 20 Terrain Scan Density 10 Armor Coverage 450 Resistance: TH 10 Propulsion Shielding 66 Evasion (%) 55 Targeting Accuracy 8 Recoil Reduction 5 Offensive Hacking 10 Item Schematics ----------------- Combat Drone Bay | -7/Data Miner | Free Lgt. Regenerative Plating | -7/Data Miner | Free Cld. Aerolev Unit | -7/Data Miner | Free Gravity Neutralizer | -7/Data Miner | Free Hvy. Treads | -7/Data Miner | Free Imp. Lightning Gun | -7/Data Miner | Free Adv. Field Recycling Unit | -7/Data Miner | Free Enh. Gauss Cannon | -7/Data Miner | Free Disruptor Cannon | -7/Data Miner | Free Mic. Fission Core | -7/Data Miner | Free Myomer Leg | -7/Data Miner | Free Robot Schematics ------------------ I-36 Angel | -7/Data Miner | Free R-10 Processor | -7/Data Miner | Free O-24 Administrator | -7/Data Miner | Free G-47 Trooper | -7/Data Miner | Free G-50 Soldier | -7/Data Miner | Free Fabricated ------------ Nothing Alien Tech Used ----------------- None Achievements -------------- None Challenges ------------ None Game ------ Seed CouplerShrapnelCompressor Manual? 0 Play Time 00:52:47 Cumulative 371.5 hours Start 2023.06.30 @ 06:29:16 End 2023.07.05 @ 10:06:59 Sessions 4 Manual Loads 0 Difficulty Rogue Special Mode None Game No. 540 Rogue 513 Adventurer 4 Explorer 23 Win Type - Total 20 Types 14/0/2/2/1/0/0/1/0 Lore% 81 Gallery% 91 Achievement% 83 Wizard Run 0 Options --------- ASCII 0 Keyboard 0 Movement Numpad Keybinds 0 Fullscreen 1 Font 18/SmallcapsGlow Map View 76x50 Tactical HUD 1 Map Filters NONE Filters NONE Steam 1 RUN: 1c30a3c7-699e-4f92-93f8-7309644e5f2d